[Event "Championnat du monde jeunes U10F"]
[Date "2024.11.15"]
[White "Norkulova, Malika"]
[Black "Sun, Yucan(SD)"]
[WhiteElo "1480"]
[BlackElo "1642"]
[Round "1.28"]
[Result "1/2-1/2"]
[TimeControl "5400+30"]

1. c4 {[%clk 1:30:56]} 1... c6 {[%clk 1:30:52]} 2. d4 {[%clk 1:31:10]} 2... d5
{[%clk 1:31:12]} 3. cxd5 {[%clk 1:31:28]} 3... cxd5 {[%clk 1:31:33]} 4. Nc3
{[%clk 1:31:50]} 4... Nf6 {[%clk 1:31:46]} 5. Bf4 {[%clk 1:31:58]} 5... Nc6
{[%clk 1:30:27]} 6. e3 {[%clk 1:30:02]} 6... Bf5 {[%clk 1:30:08]} 7. Be2 {[%clk
1:26:29]} 7... e6 {[%clk 1:29:20]} 8. Qb3 {[%clk 1:23:53]} 8... Bb4 {[%clk
1:28:12]} 9. a3 {[%clk 1:21:07]} 9... Bxc3+ {[%clk 1:28:32]} 10. bxc3 {[%clk
1:20:34]} 10... Qa5 {[%clk 1:23:48]} 11. Rc1 {[%clk 1:16:57]} 11... b6 {[%clk
1:16:31]} 12. Bb5 {[%clk 1:14:10]} 12... Rc8 {[%clk 1:13:49]} 13. Nf3 {[%clk
1:07:08]} 13... O-O {[%clk 1:08:13]} 14. O-O {[%clk 1:07:04]} 14... Ne4 {[%clk
1:05:51]} 15. h3 {[%clk 0:51:21]} 15... a6 {[%clk 1:01:25]} 16. Be2 {[%clk
0:49:41]} 16... b5 {[%clk 1:00:31]} 17. Bd3 {[%clk 0:44:55]} 17... Ng3 {[%clk
0:44:02]} 18. fxg3 {[%clk 0:40:30]} 18... Bxd3 {[%clk 0:44:25]} 19. Rf2 {[%clk
0:40:52]} 19... Qb6 {[%clk 0:40:31]} 20. Nd2 {[%clk 0:38:48]} 20... f5 {[%clk
0:36:55]} 21. Qb2 {[%clk 0:29:15]} 21... h5 {[%clk 0:34:15]} 22. Nb3 {[%clk
0:27:15]} 22... Bc4 {[%clk 0:31:06]} 23. Nc5 {[%clk 0:24:35]} 23... Rfe8 {[%clk
0:30:12]} 24. Na4 {[%clk 0:24:35]} 24... Qd8 {[%clk 0:30:11]} 25. Nc5 {[%clk
0:24:57]} 25... g5 {[%clk 0:29:48]} 26. Nb7 {[%clk 0:23:26]} 26... Qb6 {[%clk
0:27:45]} 27. Nd6 {[%clk 0:23:32]} 27... gxf4 {[%clk 0:28:04]} 28. Nxc8 {[%clk
0:23:20]} 28... Rxc8 {[%clk 0:28:33]} 29. Rxf4 {[%clk 0:23:25]} 29... Qd8 {[%clk
0:28:22]} 30. g4 {[%clk 0:23:04]} 30... Qg5 {[%clk 0:27:41]} 31. gxh5 {[%clk
0:22:14]} 31... Qxh5 {[%clk 0:27:59]} 32. Qf2 {[%clk 0:21:38]} 32... a5 {[%clk
0:26:10]} 33. Kh2 {[%clk 0:19:19]} 33... Bd3 {[%clk 0:23:20]} 34. g4 {[%clk
0:16:52]} 34... Qh7 {[%clk 0:21:00]} 35. gxf5 {[%clk 0:15:17]} 35... Bxf5 {[%clk
0:21:06]} 36. Rg1+ {[%clk 0:15:35]} 36... Bg6 {[%clk 0:18:02]} 37. Rf6 {[%clk
0:12:38]} 37... Ne7 {[%clk 0:15:15]} 38. Rfxg6+ {[%clk 0:11:40]} 38... Nxg6
{[%clk 0:14:19]} 39. Qf6 {[%clk 0:11:50]} 39... Qf7 {[%clk 0:13:45]} 40. Rxg6+
{[%clk 0:09:04]} 40... Kf8 {[%clk 0:14:09]} 41. Qh8+ {[%clk 0:08:55]} 41... Ke7
{[%clk 0:14:16]} 42. Qxc8 {[%clk 0:05:39]} 42... Qxg6 {[%clk 0:14:43]} 43. Qc7+
{[%clk 0:06:02]} 43... Kf6 {[%clk 0:14:51]} 44. Qxa5 {[%clk 0:05:34]} 44... Qc2+
{[%clk 0:14:57]} 45. Kg3 {[%clk 0:05:57]} 45... Qg6+ {[%clk 0:15:22]} 1/2-1/2

[Variant "Standard"]
[Site "Europe Echecs"]

[Event "Championnat du monde jeunes U10F"]
[Date "2024.11.15"]
[White "Camacho Chavez, Nirvana"]
[Black "Sobirova, Mumtozbegim"]
[WhiteElo "1638"]
[BlackElo "1476"]
[Round "1.29"]
[Result "0-1"]
[TimeControl "5400+30"]

1. e4 {[%clk 1:30:56]} 1... c5 {[%clk 1:30:42]} 2. Nf3 {[%clk 1:31:18]} 2... e6
{[%clk 1:30:27]} 3. d4 {[%clk 1:31:39]} 3... cxd4 {[%clk 1:30:50]} 4. Nxd4
{[%clk 1:31:54]} 4... Nc6 {[%clk 1:30:54]} 5. Nc3 {[%clk 1:32:12]} 5... Qc7
{[%clk 1:31:09]} 6. Be3 {[%clk 1:31:57]} 6... a6 {[%clk 1:31:08]} 7. Qd2 {[%clk
1:32:05]} 7... Nf6 {[%clk 1:31:26]} 8. f3 {[%clk 1:32:27]} 8... Be7 {[%clk
1:30:06]} 9. Be2 {[%clk 1:30:18]} 9... b5 {[%clk 1:30:00]} 10. Nb3 {[%clk
1:29:45]} 10... Bb7 {[%clk 1:29:11]} 11. a3 {[%clk 1:28:55]} 11... Rd8 {[%clk
1:27:51]} 12. Bd3 {[%clk 1:29:01]} 12... d5 {[%clk 1:17:04]} 13. Qf2 {[%clk
1:28:17]} 13... Qd7 {[%clk 1:13:39]} 14. Bb6 {[%clk 1:28:28]} 14... Ra8 {[%clk
1:12:45]} 15. O-O {[%clk 1:28:08]} 15... O-O {[%clk 1:12:03]} 16. Kh1 {[%clk
1:23:46]} 16... Ne5 {[%clk 1:07:30]} 17. Rad1 {[%clk 1:23:18]} 17... Qc8 {[%clk
1:06:01]} 18. Na5 {[%clk 1:21:45]} 18... Bd8 {[%clk 1:01:56]} 19. Nxb7 {[%clk
1:21:20]} 19... Qxb7 {[%clk 1:02:10]} 20. Be3 {[%clk 1:21:14]} 20... Bc7 {[%clk
0:58:41]} 21. exd5 {[%clk 1:20:55]} 21... exd5 {[%clk 0:57:16]} 22. Rfe1 {[%clk
1:19:18]} 22... Nxd3 {[%clk 0:57:06]} 23. Rxd3 {[%clk 1:19:39]} 23... Rad8
{[%clk 0:56:13]} 24. Bg5 {[%clk 1:19:59]} 24... Qc6 {[%clk 0:45:08]} 25. Qd4
{[%clk 1:19:07]} 25... Rfe8 {[%clk 0:41:22]} 26. Rde3 {[%clk 1:16:56]} 26...
Rxe3 {[%clk 0:41:15]} 27. Bxe3 {[%clk 1:16:40]} 27... Qd6 {[%clk 0:39:05]} 28.
Qh4 {[%clk 1:16:09]} 28... Re8 {[%clk 0:37:01]} 29. Bf2 {[%clk 1:16:03]} 29...
Rxe1+ {[%clk 0:36:09]} 30. Bxe1 {[%clk 1:16:26]} 30... Qd7 {[%clk 0:35:13]} 31.
Bg3 {[%clk 1:16:24]} 31... Bb6 {[%clk 0:33:32]} 32. Qf4 {[%clk 1:16:05]} 32...
d4 {[%clk 0:30:55]} 33. Ne4 {[%clk 1:15:26]} 33... Nxe4 {[%clk 0:29:53]} 34.
fxe4 {[%clk 1:15:14]} 34... h6 {[%clk 0:29:44]} 35. Qd2 {[%clk 1:12:55]} 35...
Qc6 {[%clk 0:29:21]} 36. Qd3 {[%clk 1:12:36]} 36... Qc4 {[%clk 0:27:34]} 37.
Qxc4 {[%clk 1:12:17]} 37... bxc4 {[%clk 0:25:00]} 38. Be1 {[%clk 1:12:20]} 38...
Kf8 {[%clk 0:25:11]} 39. g3 {[%clk 1:12:02]} 39... Ke7 {[%clk 0:25:26]} 40. Kg2
{[%clk 1:12:24]} 40... Ke6 {[%clk 0:25:51]} 41. Kf3 {[%clk 1:11:28]} 41... h5
{[%clk 0:24:20]} 42. Bd2 {[%clk 1:10:43]} 42... f6 {[%clk 0:23:47]} 43. a4
{[%clk 1:10:18]} 43... Bc7 {[%clk 0:23:31]} 44. Be1 {[%clk 1:09:12]} 44... f5
{[%clk 0:22:31]} 45. Bd2 {[%clk 1:08:41]} 45... Bd8 {[%clk 0:22:31]} 46. h3
{[%clk 1:07:24]} 46... g5 {[%clk 0:22:02]} 47. exf5+ {[%clk 1:07:11]} 47... Kxf5
{[%clk 0:22:14]} 48. g4+ {[%clk 1:07:35]} 48... hxg4+ {[%clk 0:22:37]} 49. hxg4+
{[%clk 1:07:51]} 49... Ke5 {[%clk 0:22:46]} 50. b3 {[%clk 1:05:56]} 50... c3
{[%clk 0:22:24]} 51. Be1 {[%clk 1:05:53]} 51... Kd5 {[%clk 0:22:47]} 52. Bg3
{[%clk 1:05:43]} 52... d3 {[%clk 0:21:28]} 53. cxd3 {[%clk 1:04:55]} 53... c2
{[%clk 0:21:47]} 54. d4 {[%clk 1:04:21]} 54... c1=Q 55. Be5 {[%clk 1:04:41]}
55... Qf1+ {[%clk 0:22:06]} 56. Kg3 {[%clk 1:04:26]} 56... Qd3+ {[%clk 0:22:26]}
57. Kf2 {[%clk 1:04:37]} 57... Qxb3 {[%clk 0:22:48]} 0-1

[Variant "Standard"]
[Site "Europe Echecs"]

[Event "Championnat du monde jeunes U10F"]
[Date "2024.11.15"]
[White "Vitsiuk, Aleksandra"]
[Black "Mohamed Ahmed, Ghidaa"]
[WhiteElo "1476"]
[BlackElo "1638"]
[Round "1.30"]
[Result "0-1"]
[TimeControl "5400+30"]

1. e4 {[%clk 1:30:57]} 1... e5 {[%clk 1:30:52]} 2. Nf3 {[%clk 1:31:14]} 2... d6
{[%clk 1:31:19]} 3. d4 {[%clk 1:31:30]} 3... exd4 {[%clk 1:31:45]} 4. Nxd4
{[%clk 1:31:36]} 4... Nf6 {[%clk 1:31:53]} 5. Nc3 {[%clk 1:31:44]} 5... Be7
{[%clk 1:32:14]} 6. Be2 {[%clk 1:31:51]} 6... a6 {[%clk 1:31:24]} 7. Be3 {[%clk
1:31:35]} 7... O-O {[%clk 1:29:52]} 8. O-O {[%clk 1:31:42]} 8... Re8 {[%clk
1:28:51]} 9. Re1 {[%clk 1:30:44]} 9... Nbd7 {[%clk 1:28:30]} 10. Nf5 {[%clk
1:30:03]} 10... Bf8 {[%clk 1:25:56]} 11. f3 {[%clk 1:30:11]} 11... Ne5 {[%clk
1:25:23]} 12. Ng3 {[%clk 1:29:26]} 12... Ng6 {[%clk 1:22:46]} 13. Qd2 {[%clk
1:28:34]} 13... b5 {[%clk 1:06:00]} 14. Rad1 {[%clk 1:27:18]} 14... Bb7 {[%clk
1:00:43]} 15. a3 {[%clk 1:26:32]} 15... Qd7 {[%clk 0:56:04]} 16. Nf5 {[%clk
1:23:57]} 16... Ne7 {[%clk 0:54:03]} 17. Nxe7+ {[%clk 1:23:52]} 17... Bxe7
{[%clk 0:53:28]} 18. e5 {[%clk 1:23:52]} 18... Nh5 {[%clk 0:51:52]} 19. g4
{[%clk 1:23:58]} 19... Rad8 {[%clk 0:46:53]} 20. gxh5 {[%clk 1:23:59]} 20... Qh3
{[%clk 0:47:09]} 21. Nd5 {[%clk 1:23:56]} 21... Bh4 {[%clk 0:46:02]} 22. Rf1
dxe5 {[%clk 0:45:41]} 23. c4 {[%clk 1:22:30]} 23... c6 {[%clk 0:44:18]} 24. Bb6
{[%clk 1:22:01]} 24... cxd5 {[%clk 0:39:45]} 25. Bxd8 {[%clk 1:22:20]} 25...
Bxd8 {[%clk 0:36:07]} 26. cxd5 {[%clk 1:22:12]} 26... Qxh5 {[%clk 0:35:25]} 27.
Kh1 {[%clk 1:22:12]} 27... Qh4 {[%clk 0:31:36]} 28. Rg1 {[%clk 1:21:34]} 28...
e4 {[%clk 0:29:36]} 29. Rg4 {[%clk 1:20:15]} 29... e3 {[%clk 0:27:34]} 30. Qd4
{[%clk 1:19:55]} 30... Qh6 {[%clk 0:27:08]} 31. Rdg1 {[%clk 1:19:40]} 31... Bf6
{[%clk 0:27:25]} 32. Qb6 {[%clk 1:19:39]} 32... Bxd5 {[%clk 0:25:50]} 33. Qxa6
{[%clk 1:19:03]} 33... Be6 {[%clk 0:24:12]} 34. Qxb5 {[%clk 1:18:50]} 34... Rd8
{[%clk 0:23:43]} 35. R4g3 {[%clk 1:16:40]} 35... g6 {[%clk 0:23:34]} 36. Rd1
{[%clk 1:16:05]} 36... Rxd1+ {[%clk 0:23:02]} 37. Bxd1 {[%clk 1:16:26]} 37...
Bh4 {[%clk 0:22:22]} 38. Rg1 {[%clk 1:16:26]} 38... Bf2 {[%clk 0:22:18]} 39. Rg5
{[%clk 1:15:55]} 39... Qf8 {[%clk 0:16:17]} 40. Qc6 {[%clk 1:15:10]} 40... Qd8
{[%clk 0:15:44]} 41. f4 {[%clk 1:11:57]} 41... Qxd1+ {[%clk 0:15:54]} 42. Kg2
{[%clk 1:12:22]} 42... Qg1+ {[%clk 0:15:31]} 43. Kf3 {[%clk 1:12:13]} 43... Qh1+
{[%clk 0:15:45]} 44. Rg2 {[%clk 1:12:35]} 44... Qd1+ {[%clk 0:15:51]} 45. Ke4
{[%clk 1:12:18]} 45... Bf5+ {[%clk 0:12:08]} 46. Ke5 {[%clk 1:12:18]} 46... Qd8
{[%clk 0:11:25]} 47. Qa6 {[%clk 1:09:48]} 47... f6+ {[%clk 0:09:27]} 48. Qxf6
{[%clk 1:10:11]} 48... Qxf6+ {[%clk 0:09:05]} 49. Kxf6 {[%clk 1:10:35]} 49... e2
{[%clk 0:09:30]} 50. Rxf2 {[%clk 1:11:00]} 50... e1=Q {[%clk 0:09:52]} 51. Rf3
{[%clk 1:11:25]} 51... Qh4+ {[%clk 0:09:59]} 52. Ke5 {[%clk 1:11:51]} 52... Qe7+
{[%clk 0:10:19]} 53. Kd4 {[%clk 1:12:15]} 53... Qd6+ {[%clk 0:10:38]} 54. Kc3
{[%clk 1:12:38]} 54... Qc5+ {[%clk 0:10:58]} 55. Kb3 {[%clk 1:13:02]} 55... Be6+
{[%clk 0:11:08]} 56. Ka4 {[%clk 1:13:24]} 56... Qc6+ {[%clk 0:11:26]} 57. Kb4
{[%clk 1:13:47]} 57... Qxf3 {[%clk 0:11:48]} 58. Kc5 {[%clk 1:14:10]} 58... Qd5+
{[%clk 0:12:10]} 59. Kb4 {[%clk 1:14:34]} 59... Qc4+ {[%clk 0:12:29]} 60. Ka5
{[%clk 1:14:59]} 60... Bd7 {[%clk 0:12:25]} 61. Kb6 {[%clk 1:15:22]} 61... Qc6+
{[%clk 0:12:44]} 62. Ka5 {[%clk 1:15:48]} 62... Qb5# 0-1

[Variant "Standard"]
[Site "Europe Echecs"]

[Event "Championnat du monde jeunes U10F"]
[Date "2024.11.15"]
[White "Artemenko, Isabella"]
[Black "Yang, Haeun"]
[WhiteElo "1637"]
[BlackElo "1475"]
[Round "1.31"]
[Result "1-0"]
[TimeControl "5400+30"]

1. e4 {[%clk 1:30:58]} 1... e5 {[%clk 1:30:53]} 2. Nf3 {[%clk 1:31:25]} 2... Nc6
{[%clk 1:31:10]} 3. Bc4 {[%clk 1:31:49]} 3... Be7 {[%clk 1:31:28]} 4. O-O {[%clk
1:32:05]} 4... Nf6 {[%clk 1:31:47]} 5. Re1 {[%clk 1:31:55]} 5... d6 {[%clk
1:32:07]} 6. h3 {[%clk 1:31:03]} 6... h6 {[%clk 1:32:03]} 7. d4 {[%clk 1:31:02]}
7... exd4 {[%clk 1:31:59]} 8. Nxd4 {[%clk 1:31:15]} 8... Bd7 {[%clk 1:31:54]} 9.
Nc3 {[%clk 1:30:24]} 9... O-O {[%clk 1:31:14]} 10. Nd5 {[%clk 1:26:01]} 10...
Nxd5 {[%clk 1:30:53]} 11. Bxd5 {[%clk 1:26:17]} 11... Bf6 {[%clk 1:30:08]} 12.
c3 {[%clk 1:24:33]} 12... Nxd4 {[%clk 1:29:23]} 13. cxd4 {[%clk 1:24:58]} 13...
Rb8 {[%clk 1:29:30]} 14. Bf4 {[%clk 1:24:21]} 14... Be6 {[%clk 1:28:48]} 15.
Bxe6 {[%clk 1:15:45]} 15... fxe6 {[%clk 1:28:50]} 16. e5 {[%clk 1:15:37]} 16...
Be7 {[%clk 1:28:48]} 17. Bg3 {[%clk 1:15:53]} 17... Qe8 {[%clk 1:28:39]} 18.
exd6 {[%clk 1:11:58]} 18... Bxd6 {[%clk 1:28:45]} 19. Qb3 {[%clk 1:11:40]} 19...
Bxg3 {[%clk 1:25:09]} 20. fxg3 {[%clk 1:10:49]} 20... Rf6 {[%clk 1:25:01]} 21.
d5 {[%clk 1:10:26]} 21... Qg6 {[%clk 1:24:12]} 22. Rxe6 {[%clk 1:10:11]} 22...
Rxe6 {[%clk 1:24:02]} 23. dxe6 {[%clk 1:10:34]} 23... Kh8 {[%clk 1:23:57]} 24.
Re1 {[%clk 1:09:14]} 24... b6 {[%clk 1:24:09]} 25. Kh2 {[%clk 1:07:36]} 25...
Re8 {[%clk 1:23:24]} 26. Qd5 {[%clk 1:06:22]} 26... Qf6 {[%clk 1:21:55]} 27. e7
{[%clk 1:04:38]} 27... Rxe7 {[%clk 1:21:45]} 28. Qd8+ {[%clk 1:05:02]} 28... Kh7
{[%clk 1:22:06]} 29. Qxe7 {[%clk 1:05:26]} 29... Qxe7 {[%clk 1:21:36]} 30. Rxe7
{[%clk 1:05:52]} 30... c5 {[%clk 1:21:59]} 31. Rxa7 {[%clk 1:06:18]} 31... Kg6
{[%clk 1:22:10]} 32. Rb7 {[%clk 1:06:42]} 32... Kf5 {[%clk 1:22:18]} 33. Rxb6
{[%clk 1:07:08]} 33... Ke4 {[%clk 1:22:31]} 34. Rg6 {[%clk 1:07:32]} 34... Kd3
{[%clk 1:22:46]} 35. Rxg7 {[%clk 1:07:55]} 35... c4 {[%clk 1:22:59]} 36. Rh7
{[%clk 1:08:16]} 36... Kc2 {[%clk 1:23:24]} 37. Rxh6 {[%clk 1:08:41]} 37... Kxb2
{[%clk 1:22:49]} 38. a4 {[%clk 1:09:06]} 38... c3 {[%clk 1:23:12]} 39. Rc6
{[%clk 1:09:32]} 39... c2 {[%clk 1:23:34]} 40. a5 {[%clk 1:09:54]} 40... c1=Q
{[%clk 1:23:30]} 41. Rxc1 {[%clk 1:10:14]} 41... Kxc1 {[%clk 1:23:55]} 42. a6
{[%clk 1:10:29]} 42... Kd2 {[%clk 1:24:21]} 43. a7 {[%clk 1:10:55]} 43... Kd3
{[%clk 1:24:46]} 44. a8=Q {[%clk 1:11:13]} 44... Kd4 {[%clk 1:25:14]} 45. Qe8
{[%clk 1:11:35]} 45... Kd5 {[%clk 1:25:34]} 46. Qe3 {[%clk 1:09:01]} 46... Kd6
{[%clk 1:25:52]} 47. Qe4 {[%clk 1:09:19]} 47... Kc5 {[%clk 1:26:07]} 48. Qd3
{[%clk 1:09:40]} 48... Kb4 {[%clk 1:26:21]} 49. Qc2 {[%clk 1:10:05]} 49... Kb5
{[%clk 1:26:45]} 50. h4 {[%clk 1:10:23]} 50... Kb6 {[%clk 1:26:55]} 51. h5
{[%clk 1:10:45]} 51... Kb5 {[%clk 1:27:19]} 52. h6 {[%clk 1:11:11]} 52... Kb4
{[%clk 1:27:41]} 53. h7 {[%clk 1:11:37]} 53... Kb5 {[%clk 1:28:06]} 54. h8=Q
{[%clk 1:12:01]} 54... Kb4 {[%clk 1:28:19]} 55. Qb8+ {[%clk 1:12:21]} 55... Ka3
{[%clk 1:28:38]} 56. Qcc7 {[%clk 1:12:46]} 56... Ka4 {[%clk 1:29:01]} 57. Qca7#
{[%clk 1:12:40]} 1-0

[Variant "Standard"]
[Site "Europe Echecs"]

[Event "Championnat du monde jeunes U10F"]
[Date "2024.11.15"]
[White "Foong, Livia"]
[Black "Jaksa, Ema"]
[WhiteElo "1461"]
[BlackElo "1635"]
[Round "1.32"]
[Result "0-1"]
[TimeControl "5400+30"]

1. d4 {[%clk 1:30:57]} 1... d5 {[%clk 1:30:38]} 2. Nf3 {[%clk 1:31:18]} 2... Nf6
{[%clk 1:30:30]} 3. Bf4 {[%clk 1:31:35]} 3... c5 {[%clk 1:30:10]} 4. e3 {[%clk
1:31:44]} 4... Nc6 {[%clk 1:29:33]} 5. Be2 {[%clk 1:31:31]} 5... Qb6 {[%clk
1:28:32]} 6. b3 {[%clk 1:30:36]} 6... e6 {[%clk 1:26:39]} 7. O-O {[%clk
1:30:51]} 7... Be7 {[%clk 1:25:12]} 8. Nbd2 {[%clk 1:31:02]} 8... cxd4 9. exd4
{[%clk 1:30:13]} 9... Nxd4 {[%clk 1:22:31]} 10. Be3 {[%clk 1:30:33]} 10... Nxe2+
11. Qxe2 {[%clk 1:30:50]} 11... Qd8 {[%clk 1:21:28]} 12. Rfd1 {[%clk 1:30:47]}
12... O-O {[%clk 1:20:46]} 13. c4 {[%clk 1:31:03]} 13... Bd7 {[%clk 1:16:41]}
14. Ne5 {[%clk 1:31:13]} 14... Bd6 {[%clk 1:10:54]} 15. Bg5 {[%clk 1:31:21]}
15... Be7 {[%clk 1:02:05]} 16. cxd5 {[%clk 1:30:21]} 16... Nxd5 {[%clk 1:01:56]}
17. Nxd7 {[%clk 1:30:22]} 17... Qxd7 {[%clk 1:01:00]} 18. Nf3 {[%clk 1:30:21]}
18... Bxg5 {[%clk 0:53:01]} 19. Nxg5 {[%clk 1:29:44]} 19... h6 {[%clk 0:48:08]}
20. Ne4 {[%clk 1:30:03]} 20... Rac8 {[%clk 0:46:25]} 21. Qg4 {[%clk 1:30:03]}
21... f5 {[%clk 0:45:09]} 22. Qg6 {[%clk 1:29:27]} 22... fxe4 {[%clk 0:45:25]}
23. Qxe4 {[%clk 1:29:37]} 23... Qf7 {[%clk 0:45:20]} 24. Kh1 {[%clk 1:28:48]}
24... Nc3 {[%clk 0:45:34]} 25. Qe3 {[%clk 1:27:50]} 25... Nxd1 {[%clk 0:45:54]}
26. Rxd1 {[%clk 1:27:58]} 26... Rfd8 {[%clk 0:46:04]} 27. Re1 {[%clk 1:27:27]}
27... Rd7 {[%clk 0:46:06]} 28. Qh3 {[%clk 1:26:11]} 28... Rcd8 {[%clk 0:46:26]}
29. Rf1 {[%clk 1:25:52]} 29... Rd1 {[%clk 0:46:35]} 30. g3 {[%clk 1:25:55]}
30... Qf3+ {[%clk 0:46:58]} 31. Kg1 {[%clk 1:25:55]} 31... Rxf1+ {[%clk
0:47:21]} 32. Qxf1 {[%clk 1:25:26]} 32... Rd1 {[%clk 0:47:48]} 33. h4 {[%clk
1:25:29]} 33... Rxf1+ {[%clk 0:48:09]} 34. Kxf1 {[%clk 1:25:48]} 34... Qd3+
{[%clk 0:48:21]} 35. Kg2 {[%clk 1:25:46]} 35... Qc2 {[%clk 0:48:46]} 36. h5
{[%clk 1:25:25]} 36... Qxa2 {[%clk 0:49:10]} 37. b4 {[%clk 1:25:47]} 37... Qb3
{[%clk 0:49:33]} 38. g4 {[%clk 1:25:49]} 38... Qxb4 {[%clk 0:49:54]} 39. Kg3
{[%clk 1:25:28]} 39... a5 {[%clk 0:50:18]} 40. Kh4 {[%clk 1:25:05]} 40... a4
{[%clk 0:50:39]} 41. f4 {[%clk 1:25:14]} 41... a3 {[%clk 0:50:49]} 42. f5 {[%clk
1:25:00]} 42... exf5 {[%clk 0:51:13]} 43. Kh3 {[%clk 1:25:13]} 43... a2 {[%clk
0:51:37]} 44. gxf5 {[%clk 1:25:07]} 44... a1=Q {[%clk 0:52:01]} 45. Kg2 {[%clk
1:25:21]} 45... Qa2+ {[%clk 0:52:26]} 46. Kf3 {[%clk 1:25:01]} 46... Qaa3+
{[%clk 0:52:51]} 47. Ke2 {[%clk 1:25:00]} 47... Qbb2+ {[%clk 0:53:16]} 48. Kd1
{[%clk 1:25:17]} 48... Qaa1# {[%clk 0:53:37]} 0-1

[Variant "Standard"]
[Site "Europe Echecs"]

[Event "Championnat du monde jeunes U10F"]
[Date "2024.11.15"]
[White "Bayramova, Aya"]
[Black "Khelfallah , Ikhlas"]
[WhiteElo "1634"]
[BlackElo "1449"]
[Round "1.33"]
[Result "1-0"]
[TimeControl "5400+30"]

1. d4 {[%clk 1:30:58]} 1... Nf6 {[%clk 1:30:37]} 2. c4 {[%clk 1:31:17]} 2... g6
{[%clk 1:28:36]} 3. Nc3 {[%clk 1:31:40]} 3... Bg7 {[%clk 1:27:56]} 4. e4 {[%clk
1:32:05]} 4... d6 {[%clk 1:28:05]} 5. Be2 {[%clk 1:31:59]} 5... O-O {[%clk
1:26:11]} 6. Be3 {[%clk 1:31:38]} 6... e5 {[%clk 1:25:33]} 7. d5 {[%clk
1:31:54]} 7... c6 {[%clk 1:24:03]} 8. f3 {[%clk 1:31:54]} 8... Ne8 {[%clk
1:20:41]} 9. c5 {[%clk 1:29:16]} 9... f5 {[%clk 1:17:24]} 10. dxc6 {[%clk
1:29:17]} 10... Nxc6 {[%clk 1:17:02]} 11. Qb3+ {[%clk 1:29:04]} 11... Kh8 {[%clk
1:16:24]} 12. cxd6 {[%clk 1:13:00]} 12... Qxd6 {[%clk 1:07:06]} 13. Rd1 {[%clk
1:09:50]} 13... Qe6 {[%clk 0:59:23]} 14. Bc4 {[%clk 1:09:48]} 14... Qe7 {[%clk
0:53:30]} 15. Nd5 {[%clk 1:10:08]} 15... Qd8 {[%clk 0:52:37]} 16. Nb6 {[%clk
1:09:53]} 16... Qe7 {[%clk 0:51:55]} 17. Nxa8 {[%clk 1:05:07]} 17... fxe4 {[%clk
0:47:35]} 18. fxe4 {[%clk 1:04:08]} 18... Qh4+ {[%clk 0:47:28]} 19. g3 {[%clk
1:04:33]} 19... Qxe4 {[%clk 0:45:14]} 20. Bd5 {[%clk 1:05:01]} 20... Qf5 {[%clk
0:43:22]} 21. Ne2 {[%clk 1:03:34]} 21... e4 {[%clk 0:38:46]} 22. Bxc6 {[%clk
0:59:50]} 22... Qf6 {[%clk 0:36:21]} 23. Nd4 {[%clk 1:00:16]} 23... Qf5 24. Ne2
{[%clk 0:59:50]} 24... bxc6 {[%clk 0:38:25]} 25. Nd4 {[%clk 1:00:11]} 25... Qf6
{[%clk 0:36:21]} 26. Qc4 {[%clk 1:00:16]} 26... Bb7 {[%clk 0:34:30]} 27. Rf1
{[%clk 1:00:35]} 27... Qxf1+ {[%clk 0:18:23]} 28. Qxf1 {[%clk 1:01:03]} 28...
Rxf1+ {[%clk 0:18:41]} 29. Kxf1 {[%clk 1:01:28]} 29... Bxa8 {[%clk 0:19:01]} 30.
Ne6 {[%clk 1:01:51]} 30... Bf6 {[%clk 0:18:23]} 31. Bd4 {[%clk 1:02:19]} 31...
Kg8 {[%clk 0:15:36]} 32. Bxf6 {[%clk 1:02:43]} 32... Nxf6 {[%clk 0:14:21]} 33.
Rd8+ {[%clk 1:03:11]} 33... Kf7 {[%clk 0:14:27]} 34. Ng5+ {[%clk 1:03:32]} 34...
Kg7 {[%clk 0:14:21]} 35. Rxa8 {[%clk 1:03:46]} 35... Kh6 {[%clk 0:14:25]} 36. h4
{[%clk 1:03:59]} 36... Kh5 {[%clk 0:14:35]} 37. Rxa7 {[%clk 1:04:21]} 37... h6
{[%clk 0:14:46]} 38. Ne6 {[%clk 1:04:18]} 38... Kg4 {[%clk 0:15:06]} 39. Kg2
{[%clk 1:04:34]} 39... e3 {[%clk 0:15:18]} 40. Nf4 {[%clk 1:04:56]} 40... g5
{[%clk 0:15:19]} 41. hxg5 {[%clk 1:05:11]} 41... hxg5 {[%clk 0:15:42]} 42. Ne2
{[%clk 1:05:37]} 42... Nd5 {[%clk 0:15:16]} 43. Ra4+ {[%clk 1:05:31]} 43... Kh5
{[%clk 0:14:57]} 44. Kf3 {[%clk 1:05:47]} 44... c5 {[%clk 0:13:27]} 45. g4+
{[%clk 1:06:04]} 45... Kh4 {[%clk 0:13:44]} 46. Ra8 {[%clk 1:06:29]} 46... Nf6
{[%clk 0:12:56]} 47. Rh8+ {[%clk 1:06:51]} 47... Nh5 {[%clk 0:13:13]} 48. Rxh5#
1-0

[Variant "Standard"]
[Site "Europe Echecs"]

[Event "Championnat du monde jeunes U10F"]
[Date "2024.11.15"]
[White "Mamarasulova, Yasmina"]
[Black "Li, Wan Qin"]
[WhiteElo "1444"]
[BlackElo "1628"]
[Round "1.34"]
[Result "0-1"]
[TimeControl "5400+30"]

1. d4 {[%clk 1:30:57]} 1... Nf6 {[%clk 1:30:49]} 2. c4 {[%clk 1:31:21]} 2... e6
{[%clk 1:31:12]} 3. Nc3 {[%clk 1:31:46]} 3... Bb4 {[%clk 1:31:24]} 4. e3 {[%clk
1:32:08]} 4... O-O {[%clk 1:30:57]} 5. Bd3 {[%clk 1:31:27]} 5... d5 {[%clk
1:31:07]} 6. Bd2 {[%clk 1:30:18]} 6... c5 {[%clk 1:30:56]} 7. Nf3 {[%clk
1:30:30]} 7... Nc6 {[%clk 1:30:54]} 8. a3 {[%clk 1:22:34]} 8... Bxc3 {[%clk
1:30:13]} 9. bxc3 {[%clk 1:22:41]} 9... cxd4 {[%clk 1:27:41]} 10. exd4 {[%clk
1:14:33]} 10... Re8 {[%clk 1:26:21]} 11. O-O {[%clk 1:14:30]} 11... b6 {[%clk
1:23:42]} 12. cxd5 {[%clk 1:11:25]} 12... exd5 {[%clk 1:20:45]} 13. Bb5 {[%clk
1:10:56]} 13... Bd7 {[%clk 1:19:16]} 14. c4 {[%clk 1:02:27]} 14... dxc4 {[%clk
1:18:37]} 15. Bxc4 {[%clk 1:02:52]} 15... Bg4 {[%clk 1:18:54]} 16. Qb3 {[%clk
0:59:54]} 16... Qc7 {[%clk 1:17:47]} 17. Ng5 {[%clk 0:44:41]} 17... Bh5 {[%clk
1:13:23]} 18. Rac1 {[%clk 0:39:40]} 18... Nxd4 {[%clk 1:07:30]} 19. Qb2 {[%clk
0:38:54]} 19... Qe5 {[%clk 1:07:51]} 20. Rb1 {[%clk 0:35:51]} 20... Ng4 {[%clk
1:03:05]} 21. f4 {[%clk 0:30:35]} 21... Qc5 {[%clk 1:03:21]} 22. h3 {[%clk
0:20:39]} 22... Nf3+ {[%clk 1:03:00]} 23. Kh1 {[%clk 0:18:19]} 23... Qg1+ {[%clk
1:03:14]} 24. Rxg1 {[%clk 0:14:57]} 24... Nf2# {[%clk 1:03:41]} 0-1

[Variant "Standard"]
[Site "Europe Echecs"]